fUSD/lending_fUSD_20250222
["ID","MTS","AMOUNT","RATE_DAILY","PERIOD"]
[354060749,1740216631710,-320.5005,9.8e-05,2]
[354060751,1740216631720,-922.5332,9.8e-05,2]
[354060752,1740216631731,-300.0,9.899e-05,2]
[354060753,1740216631741,-532.35073686,9.919e-05,2]
[354060754,1740216631754,-510.28926314,9.919e-05,2]
[354060755,1740216631765,-165.58147916,9.919e-05,2]
[354060756,1740216631776,-132.56040567,9.99e-05,2]
[354060757,1740216631789,-1958.84862141,9.99e-05,2]
[354060758,1740216631802,-1850.45,9.99e-05,2]
[354060759,1740216631814,-960.850298,9.99e-05,2]
[354060760,1740216631827,-406.88,9.99e-05,2]
[354060761,1740216631840,-387.645,9.99e-05,2]
[354060762,1740216631853,-815.2855,9.99e-05,2]
[354060763,1740216631865,-7556.17364249,9.99e-05,2]
[354060764,1740216631878,-992.04790433,9.99e-05,2]
[354060765,1740216631890,-815.46,9.99e-05,2]
[354060766,1740216631903,-1955.82951647,9.99e-05,2]
[354060767,1740216631919,-442.559833,9.99e-05,2]
[354060768,1740216631931,-475.49962009,9.99e-05,2]
[354060769,1740216631943,-12199.61952956,9.99e-05,2]
[354060770,1740216631955,-1243.56644107,9.99e-05,2]
[354060771,1740216632029,-5100.0,9.99e-05,2]
[354060772,1740216632041,-3243.84043913,9.99e-05,2]
[354060773,1740216632087,-5447.01324878,9.99e-05,2]
[354060774,1740216632097,-658.47477282,9.999e-05,2]
[354060777,1740216632108,-549.0272393,9.999e-05,2]
[354060778,1740216632391,-14684.5188935,0.0001,2]
[354060783,1740216637640,-1268.44224365,0.0001,2]
[354060784,1740216637695,-1002.61575977,0.0001,2]
[354060785,1740216637752,-598.231444,0.0001,2]
[354060786,1740216637764,-529.7911015,0.0001,2]
[354060787,1740216637775,-300.0,0.0001,2]
[354060788,1740216637809,-21760.45863702,0.0001,2]
[354060789,1740216637867,-4510.26859654,0.0001,2]
[354060790,1740216637880,-423.37479703,0.0001,2]
[354060791,1740216637923,-1275.15327242,0.0001,2]
[354060796,1740216639753,-303.29100899,0.0001,2]
[354060797,1740216639982,-1969.58,0.0001,2]
[354060798,1740216639993,-2173.19498958,0.0001,2]
[354060799,1740216640004,-6801.521952,0.0001,2]
[354060800,1740216640023,-1710.19466749,0.0001,2]
[354060801,1740216640033,-1404.30699472,0.0001,2]
[354060802,1740216640091,-6936.04355414,0.0001,2]
[354060803,1740216640102,-833.49070967,0.0001,2]
[354060804,1740216640202,-269.37321495,0.0001,2]
[354061062,1740216642740,-395.412005,0.0001,2]
[354061064,1740216642751,-977.39069926,0.0001,2]
[354061066,1740216642763,-927.77,0.0001,2]
[354061071,1740216642799,-743945.89077262,0.0001,2]
[354061073,1740216642808,-550.0,0.0001,2]
[354061075,1740216642817,-1400.0,0.0001,3]
[354061077,1740216642826,-33570.32235582,0.0001,2]
[354061079,1740216642835,-302.16779838,0.0001,2]
[354061081,1740216642845,-495.72,0.0001,2]
[354061083,1740216642854,-501.83,0.00010155,2]
[354061085,1740216642863,-36281.63,0.00010155,2]
[354061087,1740216642872,-150.99,0.00010155,2]
[354061089,1740216642883,-509.38,0.00010229,2]
[354061091,1740216642892,-1146.81867698,0.00010286,2]
[354061093,1740216642902,-500.0,0.00010305,2]
[354061095,1740216642911,-1000.0,0.0001032,2]
[354061097,1740216642920,-1146.81867699,0.00010353,2]
[354061100,1740216642930,-2760.19,0.00010386,2]
[354061102,1740216642939,-23900.0,0.00010453,2]
[354061103,1740216642948,-250.0,0.00010453,2]
[354061105,1740216642957,-1111.89,0.00010461,2]
[354061107,1740216642967,-201.37809352,0.000105,2]
[354061109,1740216642976,-201.3780934,0.000105,2]
[354061111,1740216642985,-497.8,0.00010506,2]
[354061113,1740216642994,-500.0,0.000106,2]
[354061115,1740216643003,-150.0,0.00010667,2]
[354061117,1740216643013,-201.3780934,0.00010686,2]
[354061119,1740216643022,-150.0,0.00010724,2]
[354061121,1740216643032,-500.0,0.00010724,2]
[354061123,1740216643041,-500.0,0.00010724,2]
[354061125,1740216643051,-200.0,0.00010762,2]
[354061127,1740216643060,-730.15,0.00010767,2]
[354061130,1740216643069,-494.04,0.0001079,2]
[354061132,1740216643079,-420.0,0.00010889,2]
[354061134,1740216643088,-2800.0,0.000109,3]
[354061136,1740216643097,-500.0,0.00010958,2]
[354061138,1740216643106,-500.0,0.00010958,2]
[354061140,1740216643115,-500.0,0.00010958,2]
[354061142,1740216643124,-500.0,0.00010958,2]
[354061144,1740216643134,-500.0,0.00010958,2]
[354061145,1740216643143,-500.0,0.00010958,2]
[354061147,1740216643152,-509.71310847,0.00010958,2]
[354061149,1740216643162,-452.77,0.00010958,2]
[354061152,1740216643171,-500.0,0.00010958,2]
[354061155,1740216643180,-500.0,0.00010958,2]
[354061158,1740216643190,-500.0,0.00010958,2]
[354061161,1740216643199,-500.0,0.00010958,2]
[354061164,1740216643208,-500.0,0.00010958,2]
[354061167,1740216643217,-500.0,0.00010958,2]
[354061169,1740216643226,-500.0,0.00010958,2]
[354061171,1740216643235,-500.0,0.00010958,2]
[354061173,1740216643244,-500.0,0.00010958,2]
[354061175,1740216643254,-500.0,0.00010958,2]
[354061177,1740216643263,-500.0,0.00010958,2]
[354061179,1740216643272,-500.0,0.00010958,2]
[354061181,1740216643282,-506.03773843,0.00010958,2]
[354061183,1740216643291,-500.0,0.00010958,2]
[354061185,1740216643301,-500.0,0.00010958,2]
[354061188,1740216643314,-500.0,0.00010958,2]
[354061190,1740216643323,-500.0,0.00010958,2]
[354061192,1740216643333,-500.0,0.00010958,2]
[354061194,1740216643342,-500.0,0.00010958,2]
[354061196,1740216643352,-500.0,0.00010958,2]
[354061198,1740216643362,-500.0,0.00010958,2]
[354061200,1740216643371,-500.0,0.00010958,2]
[354061202,1740216643380,-500.0,0.00010958,2]
[354061204,1740216643390,-500.0,0.00010958,2]
[354061206,1740216643400,-500.0,0.00010958,2]
[354061208,1740216643410,-500.0,0.00010958,2]
[354061210,1740216643420,-500.0,0.00010958,2]
[354061212,1740216643430,-500.0,0.00010958,2]
[354061214,1740216643439,-500.0,0.00010958,2]
[354061216,1740216643448,-500.0,0.00010958,2]
[354061218,1740216643458,-500.0,0.00010958,2]
[354061220,1740216643468,-500.0,0.00010958,2]
[354061222,1740216643477,-500.0,0.00010958,2]
[354061224,1740216643487,-500.0,0.00010958,2]
[354061226,1740216643496,-500.0,0.00010958,2]
[354061228,1740216643505,-500.0,0.00010958,2]
[354061230,1740216643514,-500.0,0.00010958,2]
[354061232,1740216643524,-500.0,0.00010958,2]
[354061234,1740216643533,-500.0,0.00010958,2]
[354061236,1740216643542,-500.0,0.00010958,2]
[354061238,1740216643551,-153.640137,0.00010958,2]
[354061240,1740216643560,-500.0,0.00010958,2]
[354061242,1740216643569,-500.0,0.00010958,2]
[354061244,1740216643579,-500.0,0.00010958,2]
[354061246,1740216643588,-508.94731764,0.00010958,2]
[354061248,1740216643601,-505.67350849,0.00010958,2]
[354061250,1740216643610,-500.0,0.00010958,2]
[354061252,1740216643620,-500.0,0.00010958,2]
[354061254,1740216643629,-493.51,0.00010958,2]
[354061256,1740216643638,-507.29,0.00010958,2]
[354061258,1740216643650,-302.16779834,0.00010999,2]
[354061260,1740216643658,-1788.0,0.00011029,2]
[354061262,1740216643668,-1267.0,0.00011029,2]
[354061264,1740216643677,-1424.0,0.00011029,2]
[354061266,1740216643687,-908.0,0.00011029,2]
[354061268,1740216643695,-784.0,0.00011029,2]
[354061270,1740216643705,-539.0,0.00011029,2]
[354061272,1740216643714,-4032.0,0.00011029,2]
[354061274,1740216643723,-150.0,0.00011029,2]
[354061276,1740216643733,-2027.0,0.00011029,2]
[354061278,1740216643742,-151.0,0.00011029,2]
[354061280,1740216643752,-3920.0,0.00011029,2]
[354061282,1740216643761,-1275.0,0.00011029,2]
[354061284,1740216643770,-1007.0,0.00011029,2]
[354061286,1740216643779,-501.58561439,0.00011033,2]
[354061288,1740216643788,-500.0,0.00011041,2]
[354061291,1740216643798,-500.0,0.00011041,2]
[354061293,1740216643807,-500.0,0.00011041,2]
[354061295,1740216643816,-500.0,0.00011041,2]
[354061297,1740216643825,-500.0,0.00011041,2]
[354061299,1740216643834,-500.0,0.00011041,2]
[354061301,1740216643843,-256.42578623,0.00011041,2]
[354061303,1740216643853,-500.0,0.00011041,2]
[354061305,1740216643861,-500.0,0.00011041,2]
[354061306,1740216643870,-500.0,0.00011041,2]
[354061308,1740216643879,-500.0,0.00011041,2]
[354061310,1740216643889,-500.0,0.00011041,2]
[354061312,1740216643898,-500.0,0.00011041,2]
[354061314,1740216643907,-500.0,0.00011041,2]
[354061316,1740216643917,-639.79906295,0.00011041,2]
[354061318,1740216643926,-500.0,0.00011041,2]
[354061320,1740216643936,-500.0,0.00011041,2]
[354061322,1740216643945,-299.72484539,0.00011041,2]
[354061324,1740216643954,-500.0,0.00011041,2]
[354061326,1740216643963,-500.0,0.00011041,2]
[354061328,1740216643972,-500.0,0.00011041,2]
[354061330,1740216643981,-500.0,0.00011041,2]
[354061332,1740216643991,-500.0,0.00011041,2]
[354061334,1740216644000,-500.0,0.00011041,2]
[354061336,1740216644009,-500.0,0.00011041,2]
[354061339,1740216644018,-500.0,0.00011041,2]
[354061341,1740216644028,-500.0,0.00011041,2]
[354061343,1740216644038,-251.64772215,0.00011041,2]
[354061345,1740216644047,-500.0,0.00011041,2]
[354061347,1740216644056,-500.0,0.00011041,2]
[354061349,1740216644065,-453.38,0.00011041,2]
[354061351,1740216644075,-500.0,0.00011041,2]
[354061353,1740216644084,-500.0,0.00011041,2]
[354061355,1740216644093,-500.0,0.00011041,2]
[354061356,1740216644102,-500.0,0.00011041,2]
[354061358,1740216644111,-500.0,0.00011041,2]
[354061360,1740216644119,-500.0,0.00011041,2]
[354061362,1740216644129,-500.0,0.00011041,2]
[354061364,1740216644138,-197.35306191,0.00011041,2]
[354061367,1740216644147,-500.0,0.00011041,2]
[354061369,1740216644157,-269.4238391,0.00011041,2]
[354061370,1740216644166,-500.0,0.00011041,2]
[354061372,1740216644175,-500.0,0.00011041,2]
[354061374,1740216644183,-170.68211938,0.00011041,2]
[354061376,1740216644193,-500.0,0.00011041,2]
[354061378,1740216644202,-500.0,0.00011041,2]
[354061380,1740216644211,-201.3780934,0.00011079,2]
[354061382,1740216644220,-4298.26388914,0.00011099,2]
[354061384,1740216644229,-4298.26388911,0.00011099,2]
[354061386,1740216644238,-4298.26388911,0.00011099,2]
[354061388,1740216644248,-4298.26388911,0.00011099,2]
[354061390,1740216644257,-30814.20972724,0.00011099,2]
[354061392,1740216644267,-500.0,0.00011123,2]
[354061394,1740216644276,-500.0,0.00011123,2]
[354061396,1740216644285,-500.0,0.00011123,2]
[354061398,1740216644294,-500.0,0.00011123,2]
[354061400,1740216644303,-500.0,0.00011123,2]
[354061402,1740216644312,-500.0,0.00011123,2]
[354061404,1740216644321,-500.0,0.00011123,2]
[354061406,1740216644331,-500.0,0.00011123,2]
[354061407,1740216644340,-500.0,0.00011123,2]
[354061408,1740216644350,-500.0,0.00011123,2]
[354061409,1740216644359,-500.0,0.00011123,2]
[354061410,1740216644368,-500.0,0.00011123,2]
[354061411,1740216644377,-500.0,0.00011123,2]
[354061412,1740216644387,-500.0,0.00011123,2]
[354061413,1740216644396,-368.08151047,0.00011123,2]
[354061414,1740216644406,-200.0888761,0.00011123,2]
[354061416,1740216644415,-500.0,0.00011123,2]
[354061418,1740216644424,-500.0,0.00011123,2]
[354061419,1740216644433,-612.59864761,0.00011123,2]
[354061421,1740216644442,-500.0,0.00011123,2]
[354061423,1740216644451,-500.0,0.00011123,2]
[354061425,1740216644461,-406.65994412,0.00011123,2]
[354061427,1740216644471,-500.0,0.00011123,2]
[354061429,1740216644481,-500.0,0.00011123,2]
[354061431,1740216644490,-500.0,0.00011123,2]
[354061433,1740216644499,-500.0,0.00011123,2]
[354061435,1740216644508,-500.0,0.00011123,2]
[354061437,1740216644517,-500.0,0.00011123,2]
[354061439,1740216644526,-500.0,0.00011123,2]
[354061441,1740216644535,-500.0,0.00011123,2]
[354061443,1740216644545,-500.0,0.00011123,2]
[354061445,1740216644554,-500.0,0.00011123,2]
[354061447,1740216644563,-500.0,0.00011123,2]
[354061450,1740216644573,-500.0,0.00011123,2]
[354061452,1740216644582,-476.67,0.00011123,2]
[354061454,1740216644591,-500.0,0.00011123,2]
[354061455,1740216644605,-212.54058072,0.00011123,2]
[354061458,1740216644615,-500.0,0.00011123,2]
[354061460,1740216644624,-152.98773856,0.00011148,2]
[354061462,1740216644633,-4298.26388911,0.00011189,2]
[354061464,1740216644644,-30814.20972719,0.0001119,2]
[354061465,1740216644653,-500.0,0.00011205,2]
[354061467,1740216644663,-500.0,0.00011205,2]
[354061470,1740216644676,-234.59435161,0.00011205,2]
[354061472,1740216644685,-500.0,0.00011205,2]
[354061474,1740216644695,-500.0,0.00011205,2]
[354061476,1740216644704,-500.0,0.00011205,2]
[354061478,1740216644714,-500.0,0.00011205,2]
[354061480,1740216644724,-500.0,0.00011205,2]
[354061482,1740216644733,-500.0,0.00011205,2]
[354061484,1740216644743,-500.0,0.00011205,2]
[354061486,1740216644752,-500.0,0.00011205,2]
[354061488,1740216644761,-500.0,0.00011205,2]
[354061490,1740216644771,-500.0,0.00011205,2]
[354061492,1740216644780,-500.0,0.00011205,2]
[354061494,1740216644789,-500.0,0.00011205,2]
[354061496,1740216644798,-500.0,0.00011205,2]
[354061498,1740216644807,-500.0,0.00011205,2]
[354061500,1740216644816,-397.56633465,0.00011205,2]
[354061502,1740216644826,-221.64797592,0.00011205,2]
[354061504,1740216644835,-500.0,0.00011205,2]
[354061506,1740216644845,-500.0,0.00011205,2]
[354061508,1740216644855,-250.77090238,0.00011205,2]
[354061510,1740216644865,-500.0,0.00011205,2]
[354061512,1740216644875,-633.88094147,0.00011205,2]
[354061514,1740216644884,-614.16911575,0.00011205,2]
[354061516,1740216644893,-500.0,0.00011205,2]
[354061518,1740216644903,-500.0,0.00011205,2]
[354061520,1740216644912,-500.0,0.00011205,2]
[354061522,1740216644921,-500.0,0.00011205,2]
[354061524,1740216644931,-500.0,0.00011205,2]
[354061526,1740216644940,-153.640137,0.00011205,2]
[354061528,1740216644950,-500.0,0.00011205,2]
[354061530,1740216644959,-500.0,0.00011205,2]
[354061532,1740216644968,-418.95000377,0.00011287,2]
[354061534,1740216644978,-500.0,0.00011287,2]
[354061536,1740216644987,-500.0,0.00011287,2]
[354061538,1740216644996,-386.70395429,0.00011287,2]
[354061540,1740216645005,-500.0,0.00011287,2]
[354061542,1740216645015,-500.0,0.00011287,2]
[354061544,1740216645024,-500.0,0.00011287,2]
[354061546,1740216645033,-500.0,0.00011287,2]
[354061548,1740216645042,-500.0,0.00011287,2]
[354061550,1740216645051,-212.7070274,0.00011287,2]
[354061552,1740216645061,-500.0,0.00011287,2]
[354061554,1740216645070,-500.0,0.00011287,2]
[354061556,1740216645079,-451.14043769,0.00011287,2]
[354061558,1740216645089,-500.0,0.00011287,2]
[354061560,1740216645098,-500.0,0.00011287,2]
[354061562,1740216645107,-500.0,0.00011287,2]
[354061564,1740216645117,-565.70958664,0.00011287,2]
[354061566,1740216645126,-248.50883236,0.00011287,2]
[354061568,1740216645136,-242.34181161,0.00011287,2]
[354061570,1740216645146,-500.0,0.00011287,2]
[354061572,1740216645155,-500.0,0.00011287,2]
[354061574,1740216645164,-500.0,0.00011287,2]
[354061576,1740216645174,-184.12,0.00011287,2]
[354061578,1740216645183,-500.0,0.00011287,2]
[354061580,1740216645193,-500.0,0.00011287,2]
[354061582,1740216645202,-500.0,0.00011287,2]
[354061584,1740216645211,-423.39149992,0.00011369,2]
[354061586,1740216645221,-500.0,0.00011369,2]
[354061588,1740216645231,-183.93846681,0.00011369,2]
[354061609,1740216645414,-500.0,0.00011369,2]
[354061611,1740216645428,-161.80145459,0.00011369,2]
[354061613,1740216645439,-500.0,0.00011369,2]
[354061615,1740216645448,-500.0,0.00011369,2]
[354061618,1740216645458,-346.01535116,0.00011369,2]
[354061621,1740216645468,-500.0,0.00011369,2]
[354061624,1740216645477,-408.89743192,0.00011369,2]
[354061627,1740216645487,-370.49,0.00011369,2]
[354061629,1740216645496,-500.0,0.00011369,2]
[354061631,1740216645505,-374.02623105,0.00011369,2]
[354061633,1740216645515,-500.0,0.00011369,2]
[354061635,1740216645525,-500.0,0.00011369,2]
[354061637,1740216645535,-500.0,0.00011369,2]
[354061639,1740216645544,-500.0,0.00011369,2]
[354061641,1740216645554,-500.0,0.00011369,2]
[354061643,1740216645563,-501.83,0.00011425,2]
[354061645,1740216645572,-311.71333593,0.0001143,2]
[354061647,1740216645581,-500.0,0.00011439,2]
[354061649,1740216645591,-500.0,0.00011439,2]
[354061652,1740216645604,-500.0,0.00011439,2]
[354061654,1740216645614,-500.0,0.00011439,2]
[354061656,1740216645623,-500.0,0.00011439,2]
[354061658,1740216645633,-500.0,0.00011439,2]
[354061660,1740216645644,-500.0,0.00011439,2]
[354061662,1740216645653,-500.0,0.00011439,2]
[354061664,1740216645664,-500.0,0.00011439,2]
[354061666,1740216645673,-500.0,0.00011439,2]
[354061668,1740216645683,-500.0,0.00011439,2]
[354061670,1740216645692,-500.0,0.00011439,2]
[354061672,1740216645702,-500.0,0.00011439,2]
[354061674,1740216645711,-500.0,0.00011439,2]
[354061676,1740216645721,-500.0,0.00011439,2]
[354061678,1740216645730,-500.0,0.00011439,2]
[354061680,1740216645740,-500.0,0.00011439,2]
[354061682,1740216645749,-157.77123,0.00011439,2]
[354061684,1740216645758,-500.0,0.00011439,2]
[354061686,1740216645767,-500.0,0.00011439,2]
[354061688,1740216645777,-500.0,0.00011439,2]
[354061690,1740216645786,-533.28834765,0.00011439,2]
[354061692,1740216645796,-500.0,0.00011439,2]
[354061694,1740216645805,-500.0,0.00011439,2]
[354061696,1740216645815,-500.0,0.00011439,2]
[354061698,1740216645825,-500.0,0.00011439,2]
[354061700,1740216645834,-500.0,0.00011439,2]
[354061702,1740216645843,-500.0,0.00011439,2]
[354061704,1740216645852,-500.0,0.00011439,2]
[354061706,1740216645862,-30814.20972719,0.0001144,2]
[354061708,1740216645871,-151.0,0.0001144,2]
[354061710,1740216645880,-151.0,0.0001144,2]
[354061712,1740216645890,-151.0,0.0001144,2]
[354061714,1740216645900,-151.0,0.0001144,2]
[354061716,1740216645909,-265.30002885,0.0001144,2]
[354061718,1740216645918,-2851.91,0.00011442,2]
[354061720,1740216645928,-500.0,0.00011452,2]
[354061722,1740216645938,-500.0,0.00011452,2]
[354061724,1740216645947,-500.0,0.00011452,2]
[354061726,1740216645957,-500.0,0.00011452,2]
[354061728,1740216645966,-500.0,0.00011452,2]
[354061730,1740216645975,-565.32387675,0.00011452,2]
[354061732,1740216645984,-500.0,0.00011452,2]
[354061734,1740216645994,-500.0,0.00011452,2]
[354061736,1740216646003,-428.92535386,0.00011452,2]
[354061739,1740216646013,-500.0,0.00011452,2]
[354061741,1740216646023,-500.0,0.00011452,2]
[354061743,1740216646032,-201.3780934,0.00011471,2]
[354061745,1740216646042,-4298.26388911,0.00011511,2]
[354061747,1740216646051,-150.0,0.00011515,2]
[354061749,1740216646060,-150.0,0.00011515,2]
[354061751,1740216646070,-150.0,0.00011515,2]
[354061753,1740216646079,-500.0,0.00011521,2]
[354061755,1740216646088,-500.0,0.00011521,2]
[354061757,1740216646098,-500.0,0.00011521,2]
[354061759,1740216646107,-500.0,0.00011521,2]
[354061761,1740216646117,-500.0,0.00011521,2]
[354061763,1740216646126,-500.0,0.00011521,2]
[354061765,1740216646135,-500.0,0.00011521,2]
[354061767,1740216646145,-500.0,0.00011521,2]
[354061769,1740216646155,-500.0,0.00011521,2]
[354061771,1740216646165,-500.0,0.00011521,2]
[354061773,1740216646174,-500.0,0.00011521,2]
[354061775,1740216646184,-513.32516361,0.00011521,2]
[354061777,1740216646194,-500.0,0.00011521,2]
[354061779,1740216646205,-500.0,0.00011521,2]
[354061781,1740216646215,-500.0,0.00011521,2]
[354061783,1740216646225,-617.73374573,0.00011521,2]
[354061785,1740216646235,-500.0,0.00011521,2]
[354061787,1740216646244,-500.0,0.00011521,2]
[354061789,1740216646254,-500.0,0.00011521,2]
[354061791,1740216646263,-500.0,0.00011521,2]
[354061793,1740216646272,-500.0,0.00011521,2]
[354061795,1740216646282,-500.0,0.00011521,2]
[354061797,1740216646291,-500.0,0.00011521,2]
[354061799,1740216646301,-500.0,0.00011521,2]
[354061801,1740216646311,-358.004368,0.00011521,2]
[354061803,1740216646320,-500.0,0.00011534,2]
[354061805,1740216646330,-500.0,0.00011534,2]
[354061807,1740216646340,-500.0,0.00011534,2]
[354061809,1740216646349,-234.56121504,0.00011534,2]
[354061811,1740216646359,-491.52,0.00011534,2]
[354061813,1740216646368,-543.20581876,0.00011534,2]
[354061815,1740216646378,-288.68894573,0.00011534,2]
[354061817,1740216646388,-500.0,0.00011534,2]
[354061819,1740216646397,-500.0,0.00011534,2]
[354061821,1740216646408,-150.0,0.00011535,2]
[354061823,1740216646417,-150.0,0.00011554,2]
[354061825,1740216646427,-150.0,0.00011558,2]
[354061827,1740216646436,-150.0,0.00011574,2]
[354061829,1740216646445,-150.0,0.00011594,2]
[354061831,1740216646455,-150.0,0.000116,2]
[354061834,1740216646464,-506.25967322,0.00011603,2]
[354061836,1740216646474,-500.0,0.00011603,2]
[354061838,1740216646483,-500.0,0.00011603,2]
[354061840,1740216646492,-500.0,0.00011603,2]
[354061842,1740216646502,-516.27641879,0.00011603,2]
[354061844,1740216646511,-500.0,0.00011603,2]
[354061846,1740216646521,-500.0,0.00011603,2]
[354061847,1740216646530,-500.0,0.00011603,2]
[354061848,1740216646539,-500.0,0.00011603,2]
[354061849,1740216646548,-500.0,0.00011603,2]
[354061850,1740216646557,-643.32522672,0.00011603,2]
[354061851,1740216646566,-500.0,0.00011603,2]
[354061852,1740216646577,-500.0,0.00011603,2]
[354061853,1740216646586,-500.0,0.00011603,2]
[354061854,1740216646597,-157.77123,0.00011603,2]
[354061855,1740216646606,-500.0,0.00011603,2]
[354061857,1740216646616,-500.0,0.00011603,2]
[354061859,1740216646626,-500.0,0.00011603,2]
[354061862,1740216646635,-500.0,0.00011603,2]
[354061864,1740216646646,-500.0,0.00011603,2]
[354061866,1740216646655,-500.0,0.00011603,2]
[354061868,1740216646666,-500.0,0.00011603,2]
[354061870,1740216646675,-500.0,0.00011603,2]
[354061872,1740216646685,-1000.0,0.00011609,2]
[354061874,1740216646698,-150.0,0.00011613,2]
[354061876,1740216646707,-500.0,0.00011616,2]
[354061878,1740216646717,-628.79949799,0.00011616,2]
[354061880,1740216646728,-555.01611616,0.00011616,2]
[354061882,1740216646737,-500.0,0.00011616,2]
[354061884,1740216646747,-500.0,0.00011616,2]
[354061886,1740216646758,-150.0,0.00011633,2]
[354061888,1740216646767,-150.0,0.00011643,2]
[354061890,1740216646777,-150.0,0.00011653,2]
[354061892,1740216646787,-150.0,0.00011673,2]
[354061894,1740216646795,-150.0,0.00011686,2]
[354061896,1740216646804,-500.0,0.00011686,2]
[354061898,1740216646813,-500.0,0.00011686,2]
[354061900,1740216646823,-500.0,0.00011686,2]
[354061902,1740216646832,-500.0,0.00011686,2]
[354061904,1740216646841,-500.0,0.00011686,2]
[354061906,1740216646850,-500.0,0.00011686,2]
[354061908,1740216646859,-500.0,0.00011686,2]
[354061910,1740216646868,-500.0,0.00011686,2]
[354061912,1740216646878,-500.0,0.00011686,2]
[354061914,1740216646888,-500.0,0.00011686,2]
[354061916,1740216646897,-500.0,0.00011686,2]
[354061918,1740216646906,-500.0,0.00011686,2]
[354061920,1740216646916,-500.0,0.00011686,2]
[354061922,1740216646924,-500.0,0.00011686,2]
[354061924,1740216646934,-500.0,0.00011686,2]
[354061926,1740216646944,-500.0,0.00011686,2]
[354061928,1740216646953,-500.0,0.00011686,2]
[354061930,1740216646962,-500.0,0.00011686,2]
[354061932,1740216646971,-500.0,0.00011686,2]
[354061934,1740216646980,-30814.20972719,0.00011689,2]
[354061936,1740216646989,-150.0,0.00011692,2]
[354061938,1740216646999,-500.0,0.00011698,2]
[354061941,1740216647008,-500.0,0.00011698,2]
[354061942,1740216647017,-150.0,0.00011712,2]
[354061945,1740216647027,-150.0,0.00011728,2]
[354061947,1740216647036,-150.0,0.00011732,2]
[354061949,1740216647045,-150.0,0.00011751,2]
[354061951,1740216647054,-500.0,0.00011762,2]
[354061953,1740216647063,-500.0,0.00011762,2]
[354061955,1740216647072,-500.0,0.00011762,2]
[354061957,1740216647081,-501.88901508,0.00011762,2]
[354061959,1740216647090,-500.0,0.00011762,2]
[354061960,1740216647100,-500.0,0.00011762,2]
[354061962,1740216647109,-500.0,0.00011762,2]
[354061964,1740216647118,-500.0,0.00011762,2]
[354061966,1740216647127,-500.0,0.00011762,2]
[354061969,1740216647139,-500.0,0.00011762,2]
[354061970,1740216647147,-500.0,0.00011762,2]
[354061973,1740216647157,-500.0,0.00011762,2]
[354061974,1740216647166,-500.0,0.00011762,2]
[354061977,1740216647175,-500.0,0.00011762,2]
[354061979,1740216647184,-500.0,0.00011762,2]
[354061981,1740216647193,-500.0,0.00011762,2]
[354061982,1740216647202,-500.0,0.00011762,2]
[354061984,1740216647212,-500.0,0.00011762,2]
[354061986,1740216647221,-500.0,0.00011762,2]
[354061988,1740216647230,-500.0,0.00011762,2]
[354061990,1740216647240,-500.0,0.00011762,2]